bitfinex-derivatives/quotes_BNBF0:USTF0_20230831
["timestamp","ask_amount","ask_price","bid_price","bid_amount"]
[1693500836931,0.07280716,218.87,218.46,0.19240912]
[1693500837227,0.07280716,218.88,218.47,0.19240912]
[1693500837531,0.07280716,218.87,218.48,0.19240912]
[1693500837723,0.07280716,218.88,218.49,0.19240912]
[1693500837928,0.07280716,218.88,218.44,0.19240912]
[1693500838128,0.07280716,218.88,218.45,0.19240912]
[1693500838327,0.07280716,218.88,218.44,0.19240912]
[1693500838627,0.07280716,218.88,218.45,0.19240912]
[1693500838827,0.07280716,218.88,218.43,0.07454792]
[1693500838828,0.07280716,218.88,218.44,0.19240912]
[1693500839028,0.07280716,218.88,218.45,0.19240912]
[1693500839524,0.07280716,218.88,218.46,0.19240912]
[1693500839729,0.07280716,218.88,218.44,0.19240912]
[1693500840027,0.07280716,218.88,218.45,0.19240912]
[1693500840228,0.07280716,218.88,218.44,0.19240912]
[1693500840630,0.07280716,218.89,218.44,0.19240912]
[1693500841127,0.07280716,218.88,218.44,0.19240912]
[1693500841628,0.07280716,218.87,218.43,0.19240912]
[1693500841829,0.07280716,218.83,218.43,0.19240912]
[1693500842032,0.91316785,218.82,218.38,0.19240912]
[1693500842224,0.07280716,218.81,218.37,0.19240912]
[1693500842532,3.39766759,218.98,218.38,0.19240912]
[1693500842533,0.07280716,218.82,218.38,0.19240912]
[1693500842830,0.07280716,218.82,218.39,0.19240912]
[1693500843023,0.07280716,218.82,218.37,0.19240912]
[1693500843229,0.07280716,218.83,218.37,0.19240912]
[1693500843431,0.84042614,218.82,218.35,0.19240912]
[1693500843723,0.07280716,218.83,218.36,0.19240912]
[1693500843928,0.07280716,218.83,218.35,0.19240912]
[1693500844528,0.07280716,218.84,218.35,0.19240912]
[1693500844830,0.84041443,218.83,218.36,0.19240912]
[1693500845127,0.91322159,218.83,218.33,0.19240912]
[1693500845325,0.07280716,218.81,218.37,0.19240912]
[1693500845528,0.07280716,218.81,218.38,0.19240912]
[1693500845732,0.91322159,218.8,218.3,0.19240912]
[1693500845926,0.84041443,218.79,218.31,0.19240912]
[1693500846127,0.84041443,218.79,218.29,0.26695704]
[1693500846324,0.84041443,218.79,218.3,0.19240912]
[1693500846534,0.07280716,218.78,218.3,0.19240912]
[1693500846831,0.91322159,218.77,218.31,0.19240912]
[1693500847027,0.07280716,218.75,218.22,0.19240912]
[1693500847229,0.84041443,218.74,218.2,0.19240912]
[1693500847430,0.84041443,218.74,218.21,0.19240912]
[1693500847731,0.84041443,218.74,218.2,0.19240912]
[1693500848029,0.84041443,218.74,218.21,0.19240912]
[1693500848327,0.84041443,218.74,218.22,0.19240912]
[1693500848532,0.84041443,218.74,218.2,0.19240912]
[1693500848729,0.84041443,218.73,218.21,0.19240912]
[1693500848931,0.84041443,218.78,218.18,0.19240912]
[1693500849126,0.84041443,218.77,218.19,0.19240912]
[1693500849331,0.84041443,218.78,218.18,0.19240912]
[1693500849528,0.84041443,218.77,218.19,0.19240912]
[1693500849735,0.84041443,218.78,218.18,0.26695704]
[1693500850028,0.84041443,218.77,218.19,0.19240912]
[1693500850233,0.84041443,218.79,218.19,0.19240912]
[1693500850428,0.84041443,218.79,218.18,0.19240912]
[1693500850732,0.84041443,218.78,218.19,0.19240912]
[1693500850934,0.84041443,218.79,218.16,0.19240912]
[1693500851130,0.84041443,218.78,218.17,0.19240912]
[1693500851325,0.84041443,218.79,218.18,0.19240912]
[1693500851531,0.84041443,218.78,218.15,0.19240912]
[1693500851733,0.84041443,218.79,218.16,0.19240912]
[1693500851932,0.84041443,218.79,218.15,0.19240912]
[1693500852136,0.84041443,218.79,218.16,0.19240912]
[1693500852336,0.84041443,218.79,218.17,0.19240912]
[1693500852536,0.84041443,218.79,218.15,0.19240912]
[1693500852737,0.84041443,218.8,218.16,0.19240912]
[1693500852938,0.84041443,218.81,218.14,0.19240912]
[1693500853135,0.84041443,218.8,218.15,0.19240912]
[1693500853437,0.84041443,218.79,218.16,0.19240912]
[1693500853738,0.84041443,218.78,218.17,0.19240912]
[1693500854038,0.84041443,218.77,218.18,0.19240912]
[1693500854239,0.84041443,218.81,218.14,0.19240912]
[1693500854737,0.91322159,218.82,218.13,0.19240912]
[1693500855042,0.84041443,218.81,218.13,0.19240912]
[1693500855234,0.07280716,218.8,218.12,0.19240912]
[1693500855537,0.07280716,218.8,217.95,0.49698619]
[1693500855538,0.07280716,218.76,218.13,0.19240912]
[1693500855733,0.91322159,218.75,218.13,0.19240912]
[1693500856039,0.91322159,218.75,218.04,0.07454792]
[1693500856040,0.84041443,218.74,218.14,0.19240912]
[1693500856232,0.84041443,218.74,218.09,0.07454792]
[1693500856435,0.84041443,218.78,218.1,0.19240912]
[1693500856631,0.84041443,218.73,218.1,0.19240912]
[1693500856832,0.84041443,218.72,218.1,0.19240912]
[1693500857037,0.84041443,218.81,218.1,0.19240912]
[1693500857233,0.84041443,218.8,218.11,0.07454792]
[1693500857437,0.84041443,218.83,218.12,0.19240912]
[1693500857939,0.91322159,218.83,218.12,0.19240912]
[1693500858239,0.84041443,218.82,218.13,0.19240912]
[1693500858440,0.91322159,218.82,218.11,0.19240912]
[1693500858643,0.84041443,218.81,218.11,0.19240912]
[1693500858838,0.84041443,218.81,218.1,0.26695704]
[1693500859039,0.84041443,218.82,218.11,0.19240912]
[1693500860039,0.07280716,218.76,218.11,0.19240912]
[1693500860239,0.91322159,218.75,218.12,0.19240912]
[1693500860435,0.84041443,218.74,218.03,0.19240912]
[1693500860635,0.84041443,218.75,218.03,0.19240912]
[1693500860935,0.84041443,218.75,218.04,0.19240912]
[1693500861142,0.84041443,218.75,218.01,0.19240912]
[1693500862541,0.84041443,218.75,218.01,0.26695704]
[1693500862745,0.84041443,218.75,218.02,0.26695704]
[1693500862942,0.84041443,218.75,217.62,2.48493098]
[1693500862943,0.84041443,218.75,218.03,0.26695704]
[1693500863241,0.84041443,218.75,218.04,0.26695704]
[1693500863438,0.07280716,218.79,218.05,0.19240912]
[1693500863439,0.84041443,218.77,218.05,0.19240912]
[1693500863737,0.84041443,218.76,218.05,0.19240912]
[1693500863944,0.84041443,218.78,218.08,0.07454792]
[1693500864140,0.84041443,218.77,218.1,0.07454792]
[1693500864344,0.84041443,218.83,218.11,0.19240912]
[1693500864534,0.07280716,218.81,218.13,0.07454792]
[1693500864842,0.84041443,218.8,218.14,0.19240912]
[1693500865035,0.91322159,218.8,218.14,0.19240912]
[1693500865240,0.91322159,218.79,218.13,0.19240912]
[1693500865440,0.84041443,218.78,218.14,0.19240912]
[1693500865842,0.84041443,218.78,218.11,0.07454792]
[1693500865843,0.84041443,218.78,218.15,0.19240912]
[1693500866038,0.84041443,218.79,218.12,0.19240912]
[1693500866235,0.84041443,218.77,218.12,0.26695704]
[1693500866436,0.84041443,218.76,218.14,0.07454792]
[1693500866636,0.84041443,218.79,218.15,0.19240912]
[1693500866840,0.84041443,218.78,218.15,0.19240912]
[1693500867041,0.91322159,218.79,218.15,0.19240912]
[1693500867239,0.07280716,218.74,218.15,0.19240912]
[1693500867437,0.84041443,218.73,218.16,0.19240912]
[1693500867640,0.84041443,218.73,218.09,0.19240912]
[1693500867842,0.84041443,218.73,218.1,0.19240912]
[1693500868342,0.84041443,218.72,218.1,0.19240912]
[1693500868545,0.84041443,218.74,218.14,0.07454792]
[1693500868736,0.84041443,218.73,218.15,0.19240912]
[1693500869042,0.84041443,218.72,218.15,0.19240912]
[1693500869243,0.84041443,218.78,218.14,0.19240912]
[1693500869444,0.84041443,218.77,218.15,0.19240912]
[1693500869643,0.84041443,218.76,218.16,0.19240912]
[1693500869844,0.84041443,218.78,218.14,0.19240912]
[1693500870043,0.84041443,218.77,218.15,0.19240912]
[1693500870245,0.91322159,218.78,218.14,0.19240912]
[1693500870438,0.91322159,218.78,217.89,0.99397239]
[1693500870439,0.07280716,218.72,218.13,0.19240912]
[1693500870743,0.07280716,218.7,218.14,0.19240912]
[1693500870945,0.84041443,218.69,218.09,0.19240912]
[1693500872445,0.07280716,218.68,218.09,0.26695704]
[1693500872641,0.84041443,218.67,218.1,0.19240912]
[1693500872842,0.84041443,218.66,218.1,0.19240912]
[1693500873044,0.91322159,218.68,218.1,0.19240912]
[1693500873345,0.84041443,218.67,218.1,0.19240912]
[1693500873541,0.84041443,218.68,218.1,0.19240912]
[1693500873748,0.84041443,218.66,218.1,0.19240912]
[1693500874046,0.84041443,218.65,218.1,0.19240912]
[1693500874243,0.84041443,218.67,218.09,0.19240912]
[1693500874448,0.07280716,218.65,218.11,0.07454792]
[1693500874649,0.84041443,218.64,218.12,0.19240912]
[1693500875042,0.91322159,218.64,218.11,0.19240912]
[1693500875343,0.84041443,218.63,218.11,0.19240912]
[1693500875548,0.91322159,218.64,218.11,0.19240912]
[1693500875748,0.84041443,218.63,218.11,0.19240912]
[1693500876745,0.84041443,218.65,218.11,0.26695704]
[1693500877051,0.84041443,218.64,218.12,0.19240912]
[1693500877249,0.84041443,218.63,218.12,0.19240912]
[1693500877450,0.84041443,218.65,218.12,0.19240912]
[1693500877646,0.84112377,218.64,218.12,0.19240912]
[1693500877843,0.84112377,218.65,218.12,0.19240912]
[1693500878248,0.07280716,218.64,218.12,0.26695704]
[1693500878448,0.84112377,218.63,218.12,0.19240912]
[1693500878647,0.84112377,218.63,218.13,0.19240912]
[1693500879152,0.07280716,218.66,218.13,0.26695704]
[1693500879353,0.07280716,218.66,218.14,0.19240912]
[1693500879553,0.07280716,218.64,218.16,0.07454792]
[1693500879753,0.07280716,218.65,218.17,0.19240912]
[1693500879947,0.9138647,218.64,218.17,0.19240912]
[1693500880146,0.07280716,218.64,218.17,0.19240912]
[1693500880549,0.07280716,218.63,218.17,0.19240912]
[1693500880749,0.07280716,218.64,218.16,0.26695704]
[1693500880953,0.07280716,218.64,218.17,0.19240912]
[1693500881653,0.07280716,218.63,218.18,0.07454792]
[1693500881953,0.07280716,218.63,218.17,0.19240912]
[1693500881954,0.07280716,218.64,218.19,0.26695704]
[1693500882152,0.07280716,218.64,218.2,0.19240912]
[1693500882354,0.07280716,218.68,218.23,0.07454792]
[1693500882549,0.07280716,218.68,218.24,0.26695704]
[1693500882749,0.07280716,218.68,218.25,0.19240912]
[1693500884952,0.07280716,218.67,218.25,0.19240912]
[1693500885455,0.07280716,218.68,218.25,0.19240912]
[1693500885848,0.07280716,218.68,218.25,0.26695704]
[1693500886050,0.07280716,218.68,213.9,1.02749642]
[1693500886051,0.07280716,218.69,218.26,0.26695704]
[1693500886253,0.07280716,218.69,218.27,0.19240912]
[1693500886654,0.07280716,218.68,218.27,0.19240912]
[1693500886848,0.07280716,218.68,218.26,0.19240912]
[1693500887256,0.07280716,218.67,218.26,0.19240912]
[1693500887450,0.07280716,218.67,218.25,0.19240912]
[1693500887646,0.07280716,218.67,218.24,0.07454792]
[1693500887647,0.07280716,218.67,218.26,0.19240912]
[1693500887846,0.07280716,218.67,218.25,0.19240912]
[1693500888051,0.07280716,218.66,218.26,0.19240912]
[1693500888347,0.07280716,218.66,218.27,0.19240912]
[1693500888552,0.07280716,218.67,218.28,0.19240912]
[1693500888749,0.07280716,218.67,218.25,0.19240912]
[1693500888950,0.07280716,218.68,218.26,0.19240912]
[1693500889354,0.07280716,218.67,218.26,0.19240912]
[1693500890561,2.42690542,218.81,218.24,0.07454792]
[1693500890562,0.07280716,218.66,218.27,0.19240912]
[1693500890857,0.07280716,218.6,218.28,0.19240912]
[1693500891053,0.07280716,218.6,218.19,0.19240912]
[1693500891258,0.07280716,218.6,218.2,0.19240912]
[1693500891454,0.07280716,218.6,218.21,0.19240912]
[1693500891654,0.07280716,218.6,218.22,0.19240912]
[1693500891860,0.07280716,218.6,218.19,0.19240912]
[1693500892056,0.07280716,218.6,218.2,0.19240912]
[1693500892253,0.48538108,218.64,218.17,0.07454792]
[1693500892254,0.07280716,218.59,218.18,0.19240912]
[1693500892655,0.07280716,218.59,218.17,0.19240912]
[1693500892854,0.07280716,218.59,218.18,0.19240912]
[1693500893059,0.07280716,218.6,218.17,0.26695704]
[1693500893253,0.07280716,218.6,218.18,0.19240912]
[1693500893457,0.07280716,218.61,218.18,0.19240912]
[1693500893655,0.07280716,218.61,218.18,0.26695704]
[1693500893859,0.07280716,218.62,218.19,0.19240912]
[1693500894055,0.07280716,218.62,218.19,0.26695704]
[1693500894260,0.07280716,218.62,218.2,0.19240912]
[1693500894458,0.07280716,218.62,218.2,0.26695704]
[1693500894659,0.07280716,218.63,218.21,0.19240912]
[1693500894856,0.07280716,218.62,218.21,0.19240912]
[1693500895755,0.07280716,218.62,218.19,0.07454792]
[1693500895756,0.07280716,218.62,218.2,0.19240912]
[1693500895962,0.07280716,218.61,218.2,0.19240912]
[1693500896664,0.07280716,218.62,218.2,0.19240912]
[1693500897162,0.07280716,218.62,218.2,0.26695704]
[1693500897561,0.07280716,218.62,218.21,0.19240912]
[1693500898163,0.07280716,218.62,218.22,0.19240912]
[1693500898363,0.07280716,218.61,218.23,0.19240912]
[1693500898558,0.07280716,218.62,218.24,0.19240912]
[1693500898765,0.07280716,218.62,218.21,0.19240912]
[1693500899065,0.07280716,218.66,218.24,0.07454792]
[1693500899465,0.07280716,218.66,218.25,0.26695704]
[1693500899661,0.07280716,218.66,218.26,0.19240912]
[1693500899862,0.07280716,218.67,218.26,0.19240912]
[1693500900564,0.97076216,218.74,218.26,0.19240912]
[1693500900565,0.07280716,218.66,218.26,0.19240912]
[1693500901664,0.07280716,218.61,218.26,0.19240912]
[1693500901864,0.07280716,218.61,218.05,0.49698619]
[1693500901865,0.07280716,218.6,218.21,0.19240912]
[1693500902065,0.07280716,218.6,218.22,0.19240912]
[1693500902265,0.07280716,218.59,218.2,0.19240912]
[1693500902657,0.07280716,218.59,218.21,0.19240912]
[1693500902861,0.07280716,218.59,218.19,0.19240912]
[1693500903058,0.07280716,218.59,218.19,0.26695704]
[1693500903262,0.07280716,218.61,218.21,0.07454792]
[1693500903665,0.07280716,218.61,218.22,0.19240912]
[1693500903968,0.07280716,218.6,218.22,0.19240912]
[1693500904366,0.07280716,218.61,218.22,0.19240912]
[1693500904560,0.07280716,218.61,218.22,0.26695704]
[1693500904764,0.07280716,218.61,218.23,0.19240912]
[1693500904960,0.07280716,218.61,218.22,0.19240912]
[1693500905167,0.07280716,218.61,218.23,0.19240912]
[1693500905461,0.07280716,218.61,218.24,0.19240912]
[1693500905664,0.07280716,218.61,218.21,0.07454792]
[1693500905665,0.07280716,218.61,218.25,0.19240912]
[1693500905967,0.07280716,218.6,218.26,0.19240912]
[1693500906270,0.07280716,218.59,218.27,0.19240912]
[1693500906566,0.07280716,218.59,218.2,0.07454792]
[1693500906567,0.07280716,218.59,218.28,0.19240912]
[1693500906766,0.07280716,218.59,218.2,0.07454792]
[1693500906767,0.07280716,218.59,218.21,0.19240912]
[1693500906963,0.07280716,218.59,218.22,0.19240912]
[1693500907159,2.42690542,218.73,218.22,0.19240912]
[1693500907160,0.07280716,218.6,218.22,0.07454792]
[1693500907364,0.07280716,218.61,218.23,0.19240912]
[1693500908366,0.07280716,218.61,218.23,0.26695704]
[1693500908568,0.07280716,218.61,218.24,0.19240912]
[1693500908766,0.07280716,218.62,218.24,0.19240912]
[1693500908969,0.07280716,218.62,218.24,0.26695704]
[1693500909164,0.07280716,218.62,218.25,0.19240912]
[1693500909469,0.07280716,218.61,218.25,0.19240912]
[1693500909669,0.07280716,218.61,218.23,0.19240912]
[1693500909869,0.07280716,218.61,218.24,0.19240912]
[1693500910767,0.07280716,218.6,218.24,0.19240912]
[1693500910968,0.07280716,218.61,218.23,0.26695704]
[1693500911169,0.07280716,218.61,218.17,0.14909585]
[1693500911170,0.07280716,218.62,218.24,0.26695704]
[1693500911472,0.07280716,218.6,218.25,0.19240912]
[1693500911669,0.07280716,218.6,218.23,0.19240912]
[1693500911873,0.07280716,218.6,218.24,0.19240912]
[1693500912171,0.07280716,218.6,218.25,0.19240912]
[1693500912465,0.07280716,218.58,218.26,0.19240912]
[1693500912669,0.07280716,218.58,218.22,0.19240912]
[1693500912872,0.07280716,218.57,218.22,0.19240912]
[1693500913072,0.07280716,218.53,218.2,0.19240912]
[1693500913373,0.97076216,218.6,218.15,0.07454792]
[1693500913374,0.07280716,218.52,218.21,0.19240912]
[1693500913571,0.07280716,218.52,218.16,0.19240912]
[1693500913868,0.07280716,218.52,217.92,0.99397239]
[1693500913869,0.07280716,218.56,218.17,0.26695704]
[1693500914074,0.14561432,218.58,218.19,0.07454792]
[1693500914075,0.07280716,218.58,218.19,0.07454792]
[1693500914265,0.07280716,218.58,218.2,0.19240912]
[1693500916669,0.07280716,218.58,218.19,0.19240912]
[1693500916871,0.07280716,218.58,218.2,0.19240912]
[1693500917173,0.07280716,218.58,218.21,0.19240912]
[1693500917374,0.07280716,218.58,218.19,0.19240912]
[1693500918572,0.07280716,218.58,218.19,0.26695704]
[1693500918774,0.07280716,218.59,218.2,0.19240912]
[1693500919568,0.07280716,218.58,218.2,0.26695704]
[1693500919771,0.07280716,218.58,218.21,0.19240912]
[1693500921478,0.07280716,218.57,218.21,0.26695704]
[1693500921679,0.07280716,218.58,218.22,0.07454792]
[1693500921979,0.07280716,218.59,218.24,0.07454792]
[1693500922174,0.07280716,218.59,218.25,0.19240912]
[1693500922578,0.07280716,218.6,218.25,0.19240912]
[1693500923079,0.07280716,218.59,218.25,0.19240912]
[1693500923281,0.07280716,218.6,218.25,0.19240912]
[1693500923482,2.42690542,218.73,218.25,0.19240912]
[1693500923483,0.07280716,218.64,218.3,0.07454792]
[1693500923683,0.07280716,218.64,218.31,0.19240912]
[1693500923877,0.07280716,218.66,218.31,0.19240912]
[1693500924482,0.07280716,218.66,218.3,0.26695704]
[1693500924782,0.07280716,218.66,218.31,0.26695704]
[1693500925081,0.07280716,218.66,218.32,0.19240912]
[1693500925281,0.07280716,218.66,218.31,0.19240912]
[1693500925580,0.07280716,218.66,218.32,0.19240912]
[1693500925974,0.07280716,218.68,218.32,0.19240912]
[1693500926377,0.07280716,218.66,218.31,0.19240912]
[1693500926680,0.07280716,218.66,218.32,0.19240912]
[1693500926880,0.07280716,218.66,218.29,0.19240912]
[1693500927183,0.07280716,218.6,218.3,0.19240912]
[1693500927382,0.07280716,218.59,218.24,0.19240912]
[1693500927583,0.07280716,218.59,218.25,0.19240912]
[1693500927878,0.07280716,218.59,218.26,0.19240912]
[1693500928082,0.07280716,218.59,218.22,0.19240912]
[1693500928382,0.14561432,218.61,218.22,0.19240912]
[1693500928383,0.07280716,218.58,218.22,0.19240912]
[1693500928985,0.07280716,218.58,218.23,0.19240912]
[1693500929185,0.07280716,218.57,218.21,0.19240912]
[1693500929383,0.07280716,218.57,218.24,0.19240912]
[1693500929585,0.07280716,218.57,218.25,0.19240912]
[1693500929885,0.07280716,218.57,218.26,0.19240912]
[1693500930185,0.07280716,218.57,218.27,0.19240912]
[1693500930384,0.07280716,218.57,218.19,0.19240912]
[1693500930584,0.07280716,218.57,218.2,0.1931473]
[1693500930781,0.07280716,218.57,218.21,0.1931473]
[1693500930985,0.07280716,218.53,218.19,0.1931473]
[1693500931186,0.07280716,218.52,218.2,0.1931473]
[1693500931387,0.07280716,218.51,218.2,0.1931473]
[1693500931687,0.07280716,218.52,218.21,0.1931473]
[1693500931887,0.07280716,218.53,218.13,0.1931473]
[1693500932187,0.07280716,218.53,218.14,0.1931473]
[1693500932387,0.07280716,218.53,218.12,0.1931473]
[1693500932585,0.07280716,218.53,218.04,0.14909585]
[1693500932586,0.07280716,218.53,218.13,0.1931473]
[1693500932787,0.07280716,218.52,218.11,0.1931473]
[1693500933488,0.07280716,218.51,218.11,0.1931473]
[1693500933688,0.07280716,218.51,218.09,0.1931473]
[1693500933886,0.07280716,218.53,218.1,0.1931473]
[1693500934086,0.07280716,218.53,218.07,0.26769522]
[1693500934387,0.07280716,218.53,218.08,0.1931473]
[1693500934787,0.07280716,218.54,218.08,0.1931473]
[1693500935386,0.07280716,218.54,218.08,0.26769522]
[1693500935788,0.97076216,218.62,217.59,3.47890337]
[1693500935789,0.07280716,218.55,218.09,0.1931473]
[1693500935988,0.07280716,218.55,218.08,0.1931473]
[1693500936288,0.07280716,218.54,218.09,0.1931473]
[1693500936491,0.07280716,218.54,218.08,0.1931473]
[1693500936689,0.07280716,218.54,218.09,0.1931473]
[1693500936991,0.07280716,218.55,218.1,0.1931473]
[1693500937284,0.91438032,218.54,218.11,0.1931473]
[1693500937495,0.07280716,218.52,218.06,0.1931473]
[1693500937791,0.07280716,218.52,218.07,0.1931473]
[1693500937990,0.07280716,218.53,218.07,0.1931473]
[1693500938187,0.84179341,218.52,218.08,0.1931473]
[1693500938394,0.07280716,218.48,218.03,0.1931473]
[1693500938584,0.07280716,218.47,218.03,0.1931473]
[1693500938789,0.07280716,218.47,217.96,0.07454792]
[1693500938790,0.91460057,218.47,218.04,0.1931473]
[1693500938986,0.07280716,218.47,217.97,0.1931473]
[1693500939191,0.84179341,218.46,218.05,0.1931473]
[1693500939394,0.07280716,218.48,217.98,0.1931473]
[1693500939693,0.84182508,218.47,217.99,0.1931473]
[1693500939893,0.84182508,218.47,217.97,0.1931473]
[1693500940093,0.84182508,218.47,217.7,0.99397239]
[1693500940094,0.84182508,218.49,217.98,0.1931473]
[1693500940394,0.07280716,218.55,217.99,0.26769522]
[1693500940594,0.07280716,218.56,218.0,0.1931473]
[1693500940791,0.84157969,218.54,218.0,0.1931473]
[1693500940988,0.84157969,218.55,218.0,0.1931473]
[1693500941187,0.84157969,218.54,217.99,0.26769522]
[1693500941391,0.84157969,218.55,218.0,0.1931473]
[1693500941592,0.84157969,218.54,218.0,0.1931473]
[1693500941792,0.84157969,218.55,218.0,0.1931473]
[1693500941994,0.84157969,218.54,217.99,0.1931473]
[1693500942196,0.84157969,218.55,218.0,0.1931473]
[1693500942395,0.84157969,218.54,217.99,0.1931473]
[1693500942596,0.91438685,218.55,218.0,0.1931473]
[1693500942798,0.84157969,218.54,217.98,0.26769522]
[1693500942996,0.48538108,218.62,217.99,0.1931473]
[1693500942997,0.91438685,218.56,217.99,0.1931473]
[1693500943191,0.91438685,218.55,218.0,0.1931473]
[1693500943393,0.84157969,218.54,217.98,0.26769522]
[1693500943597,0.91438685,218.56,217.99,0.1931473]
[1693500943797,0.84157969,218.55,217.99,0.1931473]
[1693500944300,0.84157969,218.56,217.99,0.1931473]
[1693500944500,0.84157969,218.54,217.99,0.1931473]
[1693500944699,0.84157969,218.53,217.99,0.1931473]
[1693500944900,0.84157969,218.56,217.99,0.1931473]
[1693500945199,0.84157969,218.55,217.99,0.1931473]
[1693500945401,0.84157969,218.57,217.99,0.26769522]
[1693500945599,0.84157969,218.56,217.99,0.26769522]
[1693500945801,0.91438685,218.58,218.0,0.1931473]
[1693500945993,0.84157969,218.57,218.0,0.1931473]
[1693500946398,0.91438685,218.57,218.0,0.1931473]
[1693500946593,0.84157969,218.56,217.99,0.1931473]
[1693500946796,0.84157969,218.56,218.0,0.1931473]
[1693500946997,0.84157969,218.56,217.99,0.1931473]
[1693500947198,0.84157969,218.56,218.0,0.1931473]
[1693500947497,0.84157969,218.56,218.01,0.1931473]
[1693500947697,0.84157969,218.56,217.99,0.1931473]
[1693500947898,0.91438685,218.56,218.0,0.1931473]
[1693500948093,0.84157969,218.55,217.98,0.1931473]
[1693500948301,0.84157969,218.56,217.99,0.1931473]
[1693500948502,0.84157969,218.55,217.99,0.26769522]
[1693500948803,0.84157969,218.54,218.0,0.1931473]
[1693500949001,0.91438685,218.58,218.0,0.1931473]
[1693500949198,0.84157969,218.53,218.01,0.1931473]
[1693500949395,0.07280716,218.58,217.99,0.1931473]
[1693500949601,0.84152047,218.57,218.0,0.1931473]
[1693500949798,0.84152047,218.57,217.99,0.26769522]
[1693500949998,0.84152047,218.58,218.0,0.26769522]
[1693500950199,0.84152047,218.58,218.01,0.1931473]
[1693500950495,0.84152047,218.58,218.04,0.07454792]
[1693500950695,0.84152047,218.63,218.05,0.1931473]
[1693500950898,0.84152047,218.62,218.05,0.1931473]
[1693500951095,0.84152047,218.64,218.05,0.26769522]
[1693500951296,0.84152047,218.61,218.06,0.1931473]
[1693500951498,0.84152047,218.6,218.06,0.1931473]
[1693500951702,0.84152047,218.64,218.06,0.1931473]
[1693500951897,0.84126844,218.63,218.06,0.26769522]
[1693500952101,0.84126844,218.64,218.07,0.1931473]
[1693500952299,0.84126844,218.64,218.07,0.26769522]
[1693500952604,0.84126844,218.63,218.09,0.07454792]
[1693500952899,0.84126844,218.67,218.1,0.1931473]
[1693500953097,0.84126844,218.66,218.11,0.1931473]
[1693500953297,0.9140756,218.68,218.09,0.1931473]
[1693500953498,0.84126844,218.67,218.1,0.1931473]
[1693500953699,0.84126844,218.67,218.08,0.26769522]
[1693500954001,0.84126844,218.67,218.09,0.1931473]
[1693500954303,0.07280716,218.73,218.14,0.07454792]
[1693500954503,0.84092723,218.72,218.15,0.1931473]
[1693500955002,0.84092723,218.73,218.15,0.1931473]
[1693500955998,0.84092723,218.75,218.15,0.1931473]
[1693500956305,0.84092723,218.74,218.15,0.1931473]
[1693500956506,0.84092723,218.75,218.15,0.1931473]
[1693500956799,0.84092723,218.74,218.15,0.1931473]
[1693500956999,0.84092723,218.74,218.14,0.1931473]
[1693500957201,0.84092723,218.74,218.15,0.1931473]
[1693500957398,0.84092723,218.74,218.14,0.1931473]
[1693500957598,0.84092723,218.74,218.15,0.1931473]
[1693500957804,0.84092723,218.74,218.14,0.1931473]
[1693500957999,0.84092723,218.74,218.15,0.1931473]
[1693500958200,0.84092723,218.73,218.14,0.1931473]
[1693500958407,0.84092723,218.75,218.15,0.1931473]
[1693500958601,0.84092723,218.74,218.14,0.1931473]
[1693500958801,0.84092723,218.75,218.15,0.1931473]
[1693500959008,0.84092723,218.74,218.15,0.1931473]
[1693500959205,0.84092723,218.75,218.16,0.07454792]
[1693500959508,0.84092723,218.73,218.17,0.1931473]
[1693500959702,0.84092723,218.74,218.17,0.1931473]
[1693500960007,0.84092723,218.73,218.17,0.1931473]
[1693500960207,0.84092723,218.77,218.17,0.1931473]
[1693500960402,0.84092723,218.72,218.16,0.1931473]
[1693500960605,0.84092723,218.76,218.18,0.1931473]
[1693500960805,0.84092723,218.75,218.19,0.1931473]
[1693500961007,0.84092723,218.74,218.2,0.1931473]
[1693500961204,0.84092723,218.76,218.17,0.1931473]
[1693500961404,0.84092723,218.75,218.18,0.1931473]
[1693500961602,0.14561432,218.79,218.17,0.1931473]
[1693500961603,0.91373439,218.76,218.17,0.1931473]
[1693500961801,0.84092723,218.75,218.18,0.1931473]
[1693500962005,0.84092723,218.75,218.17,0.1931473]
[1693500962408,0.84092723,218.74,218.17,0.1931473]
[1693500962611,0.91373439,218.76,218.17,0.1931473]
[1693500962812,0.84092723,218.75,218.17,0.1931473]
[1693500963112,0.84092723,218.75,218.14,0.07454792]
[1693500963113,0.91373439,218.75,218.18,0.1931473]
[1693500963306,0.84092723,218.74,218.15,0.1931473]
[1693500963510,0.84092723,218.74,218.19,0.1931473]
[1693500963812,0.84092723,218.74,218.2,0.1931473]
[1693500964113,0.84092723,218.74,218.21,0.1931473]
[1693500964411,0.91373439,218.74,218.22,0.1931473]
[1693500964611,0.91373439,218.74,218.12,0.07454792]
[1693500964612,0.84092723,218.73,218.13,0.1931473]
[1693500964812,0.84092723,218.73,218.14,0.1931473]
[1693500965112,0.84092723,218.73,218.15,0.1931473]
[1693500965411,0.84092723,218.72,218.16,0.1931473]
[1693500965606,0.84092723,218.75,218.12,0.1931473]
[1693500966209,0.84092723,218.75,218.12,0.26769522]
[1693500966411,0.84092723,218.75,218.13,0.1931473]
[1693500966909,0.84092723,218.75,218.14,0.1931473]
[1693500967114,0.84092723,218.75,218.15,0.1931473]
[1693500967316,0.84092723,218.74,218.11,0.26769522]
[1693500967519,0.91373439,218.76,218.12,0.1931473]